Workbook

Sheet 表18-取得採購專業人員性別比例
A1: 取得採購專業人員性別比例
A2: 表18
A3: 年別 | B3: 總計 | D3: 男 | F3: 女 | H3: 其他
B4: 人數 | C4: 比例 | D4: 人數 | E4: 比例 | F4: 人數 | G4: 比例 | H4: 人數 | I4: 比例
A5: 99年 | B5: =D5+F5 -> 9,593 | C5: =E5+G5 -> 100% | D5: 5,266 | E5: =D5/B5 -> 54.89% | F5: 4,327 | G5: =F5/B5 -> 45.11%
A6: 100年 | B6: =D6+F6 -> 8,341 | C6: =E6+G6 -> 100% | D6: 4,489 | E6: 53.82% | F6: 3,852 | G6: 46.18%
A7: 101年 | B7: 9,726 | C7: 100% | D7: 4,953 | E7: 50.93% | F7: 4,773 | G7: 49.07%
A8: 102年 | B8: 9,059 | C8: 100% | D8: 4,619 | E8: 50.99% | F8: 4,440 | G8: 49.01%
A9: 103年 | B9: 8,550 | C9: 100% | D9: 4,180 | E9: 48.89% | F9: 4,370 | G9: 51.11%
A10: 104年 | B10: 8,502 | C10: 100% | D10: 4,122 | E10: 48.48% | F10: 4,380 | G10: 51.52%
A11: 105年 | B11: 8,215 | C11: 100% | D11: 4,031 | E11: =D11/B11 -> 49.07% | F11: 4,184 | G11: 50.93%
A12: 106年 | B12: 8,120 | C12: =E12+G12 -> 100% | D12: 3,952 | E12: =D12/B12 -> 48.67% | F12: 4,168 | G12: =F12/B12 -> 51.33%
A13: 107年 | B13: 8,777 | C13: 100% | D13: 4,268 | E13: 48.63% | F13: 4,509 | G13: 51.37%
A14: 108年 | B14: 8,395 | C14: =E14+G14 -> 100% | D14: 3,974 | E14: =D14/B14 -> 47.34% | F14: 4,421 | G14: =F14/B14 -> 52.66%
A15: 109年 | B15: =D15+F15 -> 7,129 | C15: 100% | D15: 3,272 | E15: 45.90% | F15: 3,857 | G15: 54.10%
A16: 110年 | B16: =D16+F16+H16 -> 9,109 | C16: 100% | D16: 4,406 | E16: 48.37% | F16: 4,701 | G16: 51.61% | H16: 2 | I16: =H16/B16 -> 0.02%
A17: 111年 | B17: 8,589 | C17: 100% | D17: 4,005 | E17: 46.63% | F17: 4,584 | G17: 53.37%
A18: 112年 | B18: 8,620 | C18: 100% | D18: 3,970 | E18: 46.06% | F18: 4,650 | G18: 53.94%
A19: 113年 | B19: =D19+F19 -> 8,901 | C19: 100% | D19: 4,052 | E19: 45.52% | F19: 4,849 | G19: 54.48%
A20: 資料來源：企劃處
A21: 備註： 1.性別資料使用：採購專業人員訓練之參訓對象並無性別、年齡或學歷之限制，除機關人員外，一般民眾亦得報名參訓，且參與本訓練除可能與所學、興趣或從事之工作有關，亦係屬個人自由意志之選擇。自99年起，每年取得採購專業人員資格之男女性別比例逐年拉近，自103年起取得採購專業人員資格之女性比率超越男性，除105年以外逐年攀升，惟男女性別比例仍屬相當。 2.應用深化：據本統計資料顯示，本訓練之男女性別比例趨近平衡，無明顯差距，顯示本訓練受性別因素影響低。 3.未進行國際性別統計比較原因說明：本會尚難掌握其他國家是否辦理類似訓練，爰未與國際性別統計比較。
